[Event "November 21 Early 2023"]
[Site "https://www.chess.com"]
[Date "2023.11.21"]
[Round "7"]
[White "Osmak, Yuliia"]
[Black "Ilkhomi, Jaloliddin"]
[Result "0-1"]
[Board "87"]
[TimeControl "180+1"]
[WhiteFideId "14101602"]
[BlackFideId "14700948"]
[WhiteElo "2303"]
[BlackElo "2054"]
[WhiteTeam "UKR"]
[BlackTeam "TJK"]
[WhiteClock "0:00:00"]
[BlackClock "0:00:05"]

1. e4 {[%clk 0:03:00]}  e6 {[%clk 0:03:00]} 2. d4 {[%clk 0:03:00]}  d5 {[%clk 0:03:00]} 3. exd5 {[%clk 0:03:01]}  exd5 {[%clk 0:03:01]} 4. Nf3 {[%clk 0:02:59]}  Bd6 {[%clk 0:03:01]} 5. Bd3 {[%clk 0:02:58]}  Ne7 {[%clk 0:03:01]} 6. O-O {[%clk 0:02:56]}  O-O {[%clk 0:03:01]} 7. Re1 {[%clk 0:02:51]}  Nbc6 {[%clk 0:03:01]} 8. Bg5 {[%clk 0:02:49]}  f6 {[%clk 0:03:01]} 9. Bh4 {[%clk 0:02:48]}  Bf5 {[%clk 0:03:02]} 10. Bf1 {[%clk 0:02:41]}  Qd7 {[%clk 0:03:01]} 11. c3 {[%clk 0:02:40]}  Rae8 {[%clk 0:03:02]} 12. Nbd2 {[%clk 0:02:38]}  Ng6 {[%clk 0:02:58]} 13. Bg3 {[%clk 0:02:37]}  Rxe1 {[%clk 0:02:51]} 14. Nxe1 {[%clk 0:02:29]}  Bxg3 {[%clk 0:02:42]} 15. hxg3 {[%clk 0:02:30]}  Re8 {[%clk 0:02:39]} 16. Nd3 {[%clk 0:02:28]}  b6 {[%clk 0:02:36]} 17. Nf4 {[%clk 0:02:20]}  Nxf4 {[%clk 0:02:35]} 18. gxf4 {[%clk 0:02:21]}  Nd8 {[%clk 0:02:35]} 19. a4 {[%clk 0:02:16]}  a5 {[%clk 0:02:34]} 20. Qf3 {[%clk 0:02:09]}  Nf7 {[%clk 0:02:30]} 21. b3 {[%clk 0:01:57]}  Bg4 {[%clk 0:02:26]} 22. Qg3 {[%clk 0:01:54]}  Nd6 {[%clk 0:02:26]} 23. Bd3 {[%clk 0:01:48]}  Bf5 {[%clk 0:02:23]} 24. Kf1 {[%clk 0:01:25]}  Qe6 {[%clk 0:02:05]} 25. Qf3 {[%clk 0:00:56]}  Bg4 {[%clk 0:01:55]} 26. Qg3 {[%clk 0:00:54]}  Be2+ {[%clk 0:01:17]} 27. Kg1 {[%clk 0:00:53]}  Bxd3 {[%clk 0:01:17]} 28. Qxd3 {[%clk 0:00:53]}  Qe2 {[%clk 0:01:18]} 29. Qxe2 {[%clk 0:00:49]}  Rxe2 {[%clk 0:01:19]} 30. Rd1 {[%clk 0:00:48]}  Ne4 {[%clk 0:01:18]} 31. Nxe4 {[%clk 0:00:46]}  Rxe4 {[%clk 0:01:07]} 32. g3 {[%clk 0:00:42]}  Re2 {[%clk 0:01:07]} 33. Kf1 {[%clk 0:00:35]}  Rb2 {[%clk 0:01:04]} 34. c4 {[%clk 0:00:26]}  dxc4 {[%clk 0:00:46]} 35. bxc4 {[%clk 0:00:27]}  Rc2 {[%clk 0:00:41]} 36. c5 {[%clk 0:00:23]}  bxc5 {[%clk 0:00:42]} 37. dxc5 {[%clk 0:00:23]}  Rxc5 {[%clk 0:00:42]} 38. Rd7 {[%clk 0:00:20]}  h5 {[%clk 0:00:37]} 39. Ke2 {[%clk 0:00:20]}  Kh7 {[%clk 0:00:32]} 40. Kd3 {[%clk 0:00:19]}  Kg6 {[%clk 0:00:32]} 41. Kd4 {[%clk 0:00:19]}  Rc2 {[%clk 0:00:33]} 42. Ke4 {[%clk 0:00:17]}  Rc4+ {[%clk 0:00:31]} 43. Kf3 {[%clk 0:00:13]}  Kh6 {[%clk 0:00:27]} 44. Ke3 {[%clk 0:00:09]}  g5 {[%clk 0:00:24]} 45. f5 {[%clk 0:00:09]}  h4 {[%clk 0:00:22]} 46. Kf3 {[%clk 0:00:08]}  g4+ {[%clk 0:00:21]} 47. Kg2 {[%clk 0:00:07]}  h3+ {[%clk 0:00:21]} 48. Kh2 {[%clk 0:00:06]}  Kg5 {[%clk 0:00:22]} 49. Rd5 {[%clk 0:00:06]}  Rxa4 {[%clk 0:00:20]} 50. Rc5 {[%clk 0:00:05]}  Ra2 {[%clk 0:00:20]} 51. Kg1 {[%clk 0:00:05]}  h2+ {[%clk 0:00:18]} 52. Kxh2 {[%clk 0:00:05]}  Rxf2+ {[%clk 0:00:18]} 53. Kg1 {[%clk 0:00:06]}  Rxf5 {[%clk 0:00:19]} 54. Rxc7 {[%clk 0:00:06]}  Rf3 {[%clk 0:00:19]} 55. Kg2 {[%clk 0:00:05]}  Rb3 {[%clk 0:00:20]} 56. Rc5+ {[%clk 0:00:05]}  f5 {[%clk 0:00:18]} 57. Rxa5 {[%clk 0:00:06]}  Rb2+ {[%clk 0:00:19]} 58. Kf1 {[%clk 0:00:06]}  Kf6 {[%clk 0:00:19]} 59. Rc5 {[%clk 0:00:06]}  Ke6 {[%clk 0:00:19]} 60. Ra5 {[%clk 0:00:06]}  Rb3 {[%clk 0:00:20]} 61. Kf2 {[%clk 0:00:06]}  Rf3+ {[%clk 0:00:19]} 62. Kg2 {[%clk 0:00:06]}  Rd3 {[%clk 0:00:20]} 63. Kf2 {[%clk 0:00:06]}  Rd5 {[%clk 0:00:20]} 64. Ra8 {[%clk 0:00:06]}  Ke5 {[%clk 0:00:20]} 65. Re8+ {[%clk 0:00:05]}  Kd4 {[%clk 0:00:20]} 66. Re7 {[%clk 0:00:04]}  Kc4 {[%clk 0:00:17]} 67. Rc7+ {[%clk 0:00:04]}  Kd3 {[%clk 0:00:18]} 68. Re7 {[%clk 0:00:05]}  Ra5 {[%clk 0:00:16]} 69. Rd7+ {[%clk 0:00:05]}  Ke4 {[%clk 0:00:14]} 70. Re7+ {[%clk 0:00:05]}  Re5 {[%clk 0:00:14]} 71. Rd7 {[%clk 0:00:05]}  Re6 {[%clk 0:00:14]} 72. Ra7 {[%clk 0:00:04]}  Rb6 {[%clk 0:00:14]} 73. Re7+ {[%clk 0:00:04]}  Kd5 {[%clk 0:00:13]} 74. Rd7+ {[%clk 0:00:04]}  Rd6 {[%clk 0:00:14]} 75. Re7 {[%clk 0:00:04]}  Kc4 {[%clk 0:00:13]} 76. Re5 {[%clk 0:00:04]}  Rd5 {[%clk 0:00:13]} 77. Re7 {[%clk 0:00:04]}  Kd4 {[%clk 0:00:12]} 78. Re8 {[%clk 0:00:04]}  Rd7 {[%clk 0:00:09]} 79. Re6 {[%clk 0:00:04]}  Ra7 {[%clk 0:00:09]} 80. Rd6+ {[%clk 0:00:04]}  Ke5 {[%clk 0:00:10]} 81. Rd2 {[%clk 0:00:03]}  Ra3 {[%clk 0:00:09]} 82. Re2+ {[%clk 0:00:03]}  Kd4 {[%clk 0:00:09]} 83. Rd2+ {[%clk 0:00:04]}  Rd3 {[%clk 0:00:10]} 84. Ra2 {[%clk 0:00:03]}  Rf3+ {[%clk 0:00:09]} 85. Kg2 {[%clk 0:00:03]}  Rc3 {[%clk 0:00:10]} 86. Kf2 {[%clk 0:00:02]}  Kd3 {[%clk 0:00:10]} 87. Ra8 {[%clk 0:00:01]}  Rc2+ {[%clk 0:00:10]} 88. Kf1 {[%clk 0:00:01]}  Ke4 {[%clk 0:00:07]} 89. Ra4+ {[%clk 0:00:01]}  Ke3 {[%clk 0:00:06]} 90. Ra3+ {[%clk 0:00:01]}  Kd4 {[%clk 0:00:06]} 91. Ra5 {[%clk 0:00:00]}  Rc5 {[%clk 0:00:05]} 0-1

[Event "November 21 Early 2023"]
[Site "https://www.chess.com"]
[Date "2023.11.21"]
[Round "7"]
[White "BM223344"]
[Black "Korchmar, Vasiliy"]
[Result "0-1"]
[Board "88"]
[TimeControl "180+1"]
[BlackFideId "24131750"]
[WhiteElo "2488"]
[BlackElo "2372"]
[BlackTeam "RUS"]
[WhiteClock "0:01:55"]
[BlackClock "0:01:28"]

1. d4 {[%clk 0:03:00]}  Nf6 {[%clk 0:02:58]} 2. c4 {[%clk 0:03:00]}  e6 {[%clk 0:02:58]} 3. Nf3 {[%clk 0:03:01]}  d5 {[%clk 0:02:58]} 4. g3 {[%clk 0:03:01]}  dxc4 {[%clk 0:02:57]} 5. Nbd2 {[%clk 0:03:01]}  b5 {[%clk 0:02:56]} 6. Bg2 {[%clk 0:03:02]}  Bb7 {[%clk 0:02:56]} 7. O-O {[%clk 0:03:03]}  Nbd7 {[%clk 0:02:56]} 8. a4 {[%clk 0:03:03]}  a6 {[%clk 0:02:56]} 9. Qc2 {[%clk 0:03:03]}  c5 {[%clk 0:02:54]} 10. axb5 {[%clk 0:03:00]}  axb5 {[%clk 0:02:54]} 11. Rxa8 {[%clk 0:03:01]}  Qxa8 {[%clk 0:02:53]} 12. b3 {[%clk 0:03:01]}  cxb3 {[%clk 0:02:36]} 13. Qxb3 {[%clk 0:03:01]}  b4 {[%clk 0:02:35]} 14. dxc5 {[%clk 0:03:00]}  Bxc5 {[%clk 0:02:35]} 15. Bb2 {[%clk 0:02:59]}  O-O {[%clk 0:02:35]} 16. Ra1 {[%clk 0:02:55]}  Qb8 {[%clk 0:02:31]} 17. Qd3 {[%clk 0:02:45]}  Rd8 {[%clk 0:02:25]} 18. Qb5 {[%clk 0:02:33]}  Ng4 {[%clk 0:02:09]} 19. e3 {[%clk 0:02:27]}  Nxe3 {[%clk 0:02:09]} 20. fxe3 {[%clk 0:02:26]}  Bxe3+ {[%clk 0:02:10]} 21. Kh1 {[%clk 0:02:16]}  Bxf3 {[%clk 0:02:00]} 22. Qxb8 {[%clk 0:02:05]}  Bxg2+ {[%clk 0:02:00]} 23. Kxg2 {[%clk 0:02:06]}  Rxb8 {[%clk 0:02:00]} 24. Nc4 {[%clk 0:02:07]}  Bc5 {[%clk 0:01:52]} 25. Ra5 {[%clk 0:02:05]}  h6 {[%clk 0:01:48]} 26. h4 {[%clk 0:02:04]}  b3 {[%clk 0:01:47]} 27. Ne5 {[%clk 0:02:00]}  Nxe5 {[%clk 0:01:44]} 28. Bxe5 {[%clk 0:02:01]}  b2 {[%clk 0:01:44]} 29. Bxb2 {[%clk 0:01:52]}  Rxb2+ {[%clk 0:01:43]} 30. Kh3 {[%clk 0:01:53]}  Bd6 {[%clk 0:01:41]} 31. Ra8+ {[%clk 0:01:54]}  Kh7 {[%clk 0:01:41]} 32. Rd8 {[%clk 0:01:55]}  Rd2 {[%clk 0:01:40]} 33. Rd7 {[%clk 0:01:54]}  f6 {[%clk 0:01:39]} 34. h5 {[%clk 0:01:55]}  Rd3 {[%clk 0:01:39]} 35. Kg4 {[%clk 0:01:54]}  Rxg3+ {[%clk 0:01:39]} 36. Kh4 {[%clk 0:01:54]}  Rd3 {[%clk 0:01:28]} 37. Ra7 {[%clk 0:01:55]} 0-1

[Event "November 21 Early 2023"]
[Site "https://www.chess.com"]
[Date "2023.11.21"]
[Round "7"]
[White "Nazari, Arad"]
[Black "Pinero Rodriguez, Carlos Jose"]
[Result "1-0"]
[Board "89"]
[TimeControl "180+1"]
[WhiteFideId "12577324"]
[BlackFideId "3901726"]
[WhiteElo "2100"]
[BlackElo "2191"]
[WhiteTeam "IRI"]
[BlackTeam "VEN"]
[WhiteClock "0:01:20"]
[BlackClock "0:00:35"]

1. e4 {[%clk 0:03:00]}  c5 {[%clk 0:02:58]} 2. Nf3 {[%clk 0:02:51]}  e6 {[%clk 0:02:57]} 3. d4 {[%clk 0:02:51]}  cxd4 {[%clk 0:02:56]} 4. Nxd4 {[%clk 0:02:52]}  a6 {[%clk 0:02:55]} 5. Bd3 {[%clk 0:02:50]}  Qc7 {[%clk 0:02:54]} 6. O-O {[%clk 0:02:50]}  Nf6 {[%clk 0:02:53]} 7. Qe2 {[%clk 0:02:44]}  h5 {[%clk 0:02:52]} 8. f4 {[%clk 0:02:34]}  Bc5 {[%clk 0:02:47]} 9. c3 {[%clk 0:02:35]}  Nc6 {[%clk 0:02:47]} 10. Be3 {[%clk 0:02:32]}  Ng4 {[%clk 0:02:47]} 11. Nd2 {[%clk 0:02:24]}  b5 {[%clk 0:02:42]} 12. h3 {[%clk 0:02:13]}  Nxe3 {[%clk 0:02:41]} 13. Qxe3 {[%clk 0:02:13]}  Bb7 {[%clk 0:02:40]} 14. N2f3 {[%clk 0:02:06]}  f6 {[%clk 0:02:34]} 15. e5 {[%clk 0:02:04]}  f5 {[%clk 0:02:33]} 16. Kh1 {[%clk 0:01:54]}  h4 {[%clk 0:02:29]} 17. Nxb5 {[%clk 0:01:50]}  Qb6 {[%clk 0:02:20]} 18. Nbd4 {[%clk 0:01:50]}  Qa7 {[%clk 0:02:10]} 19. b4 {[%clk 0:01:47]}  Bb6 {[%clk 0:02:09]} 20. a4 {[%clk 0:01:46]}  a5 {[%clk 0:02:09]} 21. b5 {[%clk 0:01:46]}  Ne7 {[%clk 0:02:08]} 22. Qd2 {[%clk 0:01:41]}  Rc8 {[%clk 0:02:02]} 23. Rad1 {[%clk 0:01:38]}  Nd5 {[%clk 0:01:58]} 24. c4 {[%clk 0:01:35]}  Bxd4 {[%clk 0:01:43]} 25. Nxd4 {[%clk 0:01:28]}  Qxd4 {[%clk 0:01:41]} 26. cxd5 {[%clk 0:01:28]}  Qxd5 {[%clk 0:01:19]} 27. b6 {[%clk 0:01:20]}  Rc3 {[%clk 0:00:40]} 28. Bxf5 {[%clk 0:01:21]}  Rxh3+ {[%clk 0:00:35]} 29. Bxh3 {[%clk 0:01:20]} 1-0

[Event "November 21 Early 2023"]
[Site "https://www.chess.com"]
[Date "2023.11.21"]
[Round "7"]
[White "Pourkashiyan, Atousa"]
[Black "Pourramezanali, Amirreza"]
[Result "0-1"]
[Board "91"]
[TimeControl "180+1"]
[WhiteFideId "12502014"]
[BlackFideId "12511412"]
[WhiteElo "2221"]
[BlackElo "2302"]
[WhiteTeam "USA"]
[BlackTeam "IRI"]
[WhiteClock "0:00:00"]
[BlackClock "0:02:12"]

1. e4 {[%clk 0:02:55]}  c6 {[%clk 0:02:59]} 2. d4 {[%clk 0:02:54]}  d5 {[%clk 0:03:00]} 3. exd5 {[%clk 0:02:52]}  cxd5 {[%clk 0:03:01]} 4. Bd3 {[%clk 0:02:52]}  Nf6 {[%clk 0:03:01]} 5. c3 {[%clk 0:02:53]}  Bg4 {[%clk 0:02:59]} 6. f3 {[%clk 0:02:52]}  Bh5 {[%clk 0:02:58]} 7. Ne2 {[%clk 0:02:51]}  Nc6 {[%clk 0:02:57]} 8. O-O {[%clk 0:02:50]}  e6 {[%clk 0:02:57]} 9. Bg5 {[%clk 0:02:47]}  Bd6 {[%clk 0:02:55]} 10. Nd2 {[%clk 0:02:45]}  Qc7 {[%clk 0:02:54]} 11. g3 {[%clk 0:02:23]}  Bg6 {[%clk 0:02:54]} 12. Nb3 {[%clk 0:02:14]}  Nd7 {[%clk 0:02:50]} 13. Bf4 {[%clk 0:01:59]}  O-O {[%clk 0:02:46]} 14. Bxd6 {[%clk 0:01:58]}  Qxd6 {[%clk 0:02:46]} 15. Bxg6 {[%clk 0:01:52]}  hxg6 {[%clk 0:02:45]} 16. Nf4 {[%clk 0:01:52]}  b6 {[%clk 0:02:42]} 17. Re1 {[%clk 0:01:47]}  Rfe8 {[%clk 0:02:41]} 18. Qd2 {[%clk 0:01:39]}  Rad8 {[%clk 0:02:39]} 19. Rad1 {[%clk 0:01:36]}  a5 {[%clk 0:02:39]} 20. Nc1 {[%clk 0:01:35]}  e5 {[%clk 0:02:38]} 21. dxe5 {[%clk 0:01:32]}  Ndxe5 {[%clk 0:02:38]} 22. Kg2 {[%clk 0:01:28]}  d4 {[%clk 0:02:38]} 23. b3 {[%clk 0:01:01]}  g5 {[%clk 0:02:36]} 24. Nfd3 {[%clk 0:00:55]}  Qd5 {[%clk 0:02:36]} 25. Nxe5 {[%clk 0:00:48]}  Nxe5 {[%clk 0:02:37]} 26. Rxe5 {[%clk 0:00:43]}  Rxe5 {[%clk 0:02:30]} 27. cxd4 {[%clk 0:00:43]}  Re6 {[%clk 0:02:30]} 28. g4 {[%clk 0:00:39]}  Rc8 {[%clk 0:02:29]} 29. Ne2 {[%clk 0:00:36]}  Rec6 {[%clk 0:02:27]} 30. Qe3 {[%clk 0:00:31]}  Rc2 {[%clk 0:02:27]} 31. Rd2 {[%clk 0:00:31]}  Qb5 {[%clk 0:02:26]} 32. Kf2 {[%clk 0:00:25]}  Rxd2 {[%clk 0:02:13]} 33. Qxd2 {[%clk 0:00:26]}  Qd5 {[%clk 0:02:13]} 34. Nc3 {[%clk 0:00:21]}  Qd6 {[%clk 0:02:11]} 35. Kg2 {[%clk 0:00:00]}  Qb4 {[%clk 0:02:12]} 0-1

[Event "November 21 Early 2023"]
[Site "https://www.chess.com"]
[Date "2023.11.21"]
[Round "7"]
[White "ChainedDowntohell"]
[Black "Gutkin, Ilya"]
[Result "1-0"]
[Board "97"]
[TimeControl "180+1"]
[BlackFideId "16203470"]
[WhiteElo "2582"]
[BlackElo "2248"]
[BlackTeam "GER"]
[WhiteClock "0:00:10"]
[BlackClock "0:00:03"]

1. d4 {[%clk 0:03:00]}  d5 {[%clk 0:03:00]} 2. c4 {[%clk 0:03:00]}  e6 {[%clk 0:02:59]} 3. Nf3 {[%clk 0:03:00]}  c6 {[%clk 0:02:59]} 4. g3 {[%clk 0:02:55]}  dxc4 {[%clk 0:02:59]} 5. Bg2 {[%clk 0:02:53]}  b6 {[%clk 0:02:58]} 6. Ne5 {[%clk 0:02:51]}  Bb7 {[%clk 0:02:55]} 7. O-O {[%clk 0:02:46]}  Nf6 {[%clk 0:02:53]} 8. Be3 {[%clk 0:02:41]}  b5 {[%clk 0:02:40]} 9. a4 {[%clk 0:02:36]}  a6 {[%clk 0:02:39]} 10. b3 {[%clk 0:02:35]}  cxb3 {[%clk 0:02:32]} 11. Nd2 {[%clk 0:02:28]}  b2 {[%clk 0:02:23]} 12. Ra2 {[%clk 0:02:21]}  Nd5 {[%clk 0:02:12]} 13. Qb3 {[%clk 0:02:03]}  Bd6 {[%clk 0:01:54]} 14. Ne4 {[%clk 0:01:49]}  Bxe5 {[%clk 0:01:53]} 15. dxe5 {[%clk 0:01:49]}  Nxe3 {[%clk 0:01:50]} 16. Nd6+ {[%clk 0:01:44]}  Qxd6 {[%clk 0:01:15]} 17. exd6 {[%clk 0:01:45]}  Nxf1 {[%clk 0:01:15]} 18. Qxb2 {[%clk 0:01:14]}  O-O {[%clk 0:01:11]} 19. Kxf1 {[%clk 0:00:58]}  Nd7 {[%clk 0:01:10]} 20. h4 {[%clk 0:00:47]}  f6 {[%clk 0:01:06]} 21. Qb3 {[%clk 0:00:40]}  Kf7 {[%clk 0:01:05]} 22. Qc2 {[%clk 0:00:34]}  g6 {[%clk 0:00:59]} 23. axb5 {[%clk 0:00:23]}  axb5 {[%clk 0:00:58]} 24. h5 {[%clk 0:00:22]}  Rxa2 {[%clk 0:00:56]} 25. Qxa2 {[%clk 0:00:23]}  Ra8 {[%clk 0:00:55]} 26. Qb1 {[%clk 0:00:19]}  b4 {[%clk 0:00:50]} 27. Be4 {[%clk 0:00:16]}  f5 {[%clk 0:00:43]} 28. Qxb4 {[%clk 0:00:15]}  Ra1+ {[%clk 0:00:27]} 29. Kg2 {[%clk 0:00:14]}  Ba8 {[%clk 0:00:28]} 30. Bf3 {[%clk 0:00:12]}  g5 {[%clk 0:00:23]} 31. g4 {[%clk 0:00:08]}  fxg4 {[%clk 0:00:09]} 32. Qxg4 {[%clk 0:00:09]}  Kf6 {[%clk 0:00:08]} 33. Qd4+ {[%clk 0:00:09]}  Ne5 {[%clk 0:00:07]} 34. Qxa1 {[%clk 0:00:10]}  g4 {[%clk 0:00:06]} 35. Qxa8 {[%clk 0:00:09]}  gxf3+ {[%clk 0:00:03]} 36. exf3 {[%clk 0:00:10]} 1-0

[Event "November 21 Early 2023"]
[Site "https://www.chess.com"]
[Date "2023.11.21"]
[Round "7"]
[White "Kovalevsky, Stanislav"]
[Black "Kim, Sergey"]
[Result "1-0"]
[Board "99"]
[TimeControl "180+1"]
[WhiteFideId "13508598"]
[BlackFideId "13700570"]
[WhiteElo "2092"]
[BlackElo "2577"]
[WhiteTeam "FID"]
[BlackTeam "KAZ"]
[WhiteClock "0:00:05"]
[BlackClock "0:00:31"]

1. e4 {[%clk 0:03:00]}  e5 {[%clk 0:02:59]} 2. Nf3 {[%clk 0:03:00]}  Nc6 {[%clk 0:02:58]} 3. Bb5 {[%clk 0:03:01]}  a6 {[%clk 0:02:59]} 4. Ba4 {[%clk 0:03:01]}  Nf6 {[%clk 0:02:59]} 5. O-O {[%clk 0:03:01]}  b5 {[%clk 0:02:59]} 6. Bb3 {[%clk 0:03:01]}  Bc5 {[%clk 0:02:59]} 7. d3 {[%clk 0:02:46]}  d6 {[%clk 0:02:59]} 8. a4 {[%clk 0:02:41]}  Rb8 {[%clk 0:02:58]} 9. axb5 {[%clk 0:02:40]}  axb5 {[%clk 0:02:59]} 10. c3 {[%clk 0:02:40]}  h6 {[%clk 0:02:58]} 11. Re1 {[%clk 0:02:34]}  O-O {[%clk 0:02:58]} 12. Nbd2 {[%clk 0:02:33]}  Nh5 {[%clk 0:02:57]} 13. Nf1 {[%clk 0:02:30]}  Qf6 {[%clk 0:02:56]} 14. Be3 {[%clk 0:02:20]}  Bb6 {[%clk 0:02:55]} 15. Bxb6 {[%clk 0:02:11]}  Rxb6 {[%clk 0:02:53]} 16. d4 {[%clk 0:02:08]}  Nf4 {[%clk 0:02:51]} 17. Ng3 {[%clk 0:02:00]}  Bg4 {[%clk 0:02:48]} 18. d5 {[%clk 0:01:40]}  Ne7 {[%clk 0:02:43]} 19. h3 {[%clk 0:01:38]}  Nxh3+ {[%clk 0:02:42]} 20. Kf1 {[%clk 0:01:25]}  Ng5 {[%clk 0:02:34]} 21. Ra7 {[%clk 0:01:15]}  Nxf3 {[%clk 0:02:28]} 22. gxf3 {[%clk 0:01:14]}  Bxf3 {[%clk 0:02:28]} 23. Qd3 {[%clk 0:01:14]}  Ng6 {[%clk 0:02:03]} 24. Rxc7 {[%clk 0:01:07]}  Bg4 {[%clk 0:02:03]} 25. Bd1 {[%clk 0:00:57]}  Nf4 {[%clk 0:01:57]} 26. Qe3 {[%clk 0:00:52]}  Bh3+ {[%clk 0:01:57]} 27. Kg1 {[%clk 0:00:51]}  Rbb8 {[%clk 0:01:56]} 28. Nh5 {[%clk 0:00:36]}  Nxh5 {[%clk 0:01:40]} 29. Bxh5 {[%clk 0:00:31]}  Qh4 {[%clk 0:01:36]} 30. Bd1 {[%clk 0:00:13]}  f5 {[%clk 0:01:28]} 31. Qg3 {[%clk 0:00:10]}  Qxg3+ {[%clk 0:01:27]} 32. fxg3 {[%clk 0:00:11]}  f4 {[%clk 0:01:17]} 33. Kh2 {[%clk 0:00:10]}  Bc8 {[%clk 0:01:13]} 34. Rc6 {[%clk 0:00:06]}  Rf6 {[%clk 0:01:10]} 35. gxf4 {[%clk 0:00:06]}  exf4 {[%clk 0:01:09]} 36. e5 {[%clk 0:00:06]}  dxe5 {[%clk 0:01:09]} 37. Rxe5 {[%clk 0:00:07]}  Kf7 {[%clk 0:01:02]} 38. Bh5+ {[%clk 0:00:06]}  g6 {[%clk 0:01:01]} 39. Bf3 {[%clk 0:00:04]}  Rxc6 {[%clk 0:00:52]} 40. dxc6 {[%clk 0:00:05]}  Be6 {[%clk 0:00:49]} 41. Rc5 {[%clk 0:00:04]}  h5 {[%clk 0:00:46]} 42. c7 {[%clk 0:00:05]}  Rc8 {[%clk 0:00:46]} 43. Bb7 {[%clk 0:00:05]}  Kf6 {[%clk 0:00:45]} 44. Bxc8 {[%clk 0:00:05]}  Bxc8 {[%clk 0:00:45]} 45. Rxb5 {[%clk 0:00:05]}  g5 {[%clk 0:00:45]} 46. Rb8 {[%clk 0:00:05]}  Be6 {[%clk 0:00:44]} 47. Rf8+ {[%clk 0:00:05]}  Kg6 {[%clk 0:00:40]} 48. Re8 {[%clk 0:00:04]}  Bg4 {[%clk 0:00:38]} 49. c8=Q {[%clk 0:00:04]}  Bxc8 {[%clk 0:00:37]} 50. Rxc8 {[%clk 0:00:05]}  g4 {[%clk 0:00:37]} 51. b4 {[%clk 0:00:05]}  h4 {[%clk 0:00:36]} 52. Rg8+ {[%clk 0:00:05]}  Kf5 {[%clk 0:00:36]} 53. b5 {[%clk 0:00:05]}  f3 {[%clk 0:00:35]} 54. b6 {[%clk 0:00:05]}  g3+ {[%clk 0:00:35]} 55. Rxg3 {[%clk 0:00:05]}  hxg3+ {[%clk 0:00:34]} 56. Kxg3 {[%clk 0:00:06]}  Ke4 {[%clk 0:00:35]} 57. b7 {[%clk 0:00:05]}  Ke3 {[%clk 0:00:35]} 58. b8=Q {[%clk 0:00:05]}  f2 {[%clk 0:00:31]} 59. Qe5+ {[%clk 0:00:05]} 1-0

[Event "November 21 Early 2023"]
[Site "https://www.chess.com"]
[Date "2023.11.21"]
[Round "7"]
[White "Minko, Dmitry"]
[Black "Demin, Vladimir"]
[Result "0-1"]
[Board "100"]
[TimeControl "180+1"]
[WhiteFideId "24188468"]
[BlackFideId "4167457"]
[WhiteElo "1992"]
[BlackElo "2576"]
[WhiteTeam "FID"]
[BlackTeam "RUS"]
[WhiteClock "0:00:25"]
[BlackClock "0:01:46"]

1. e4 {[%clk 0:03:00]}  e5 {[%clk 0:02:55]} 2. Nf3 {[%clk 0:03:01]}  Nc6 {[%clk 0:02:53]} 3. d4 {[%clk 0:03:01]}  exd4 {[%clk 0:02:53]} 4. Nxd4 {[%clk 0:03:02]}  Nf6 {[%clk 0:02:52]} 5. Nc3 {[%clk 0:03:02]}  Bb4 {[%clk 0:02:52]} 6. Nxc6 {[%clk 0:03:03]}  bxc6 {[%clk 0:02:51]} 7. Bd3 {[%clk 0:03:04]}  d5 {[%clk 0:02:49]} 8. exd5 {[%clk 0:03:05]}  cxd5 {[%clk 0:02:49]} 9. O-O {[%clk 0:03:05]}  O-O {[%clk 0:02:49]} 10. Bg5 {[%clk 0:03:05]}  c6 {[%clk 0:02:49]} 11. Qf3 {[%clk 0:03:02]}  Bd6 {[%clk 0:02:49]} 12. h3 {[%clk 0:03:02]}  Rb8 {[%clk 0:02:48]} 13. b3 {[%clk 0:03:01]}  Re8 {[%clk 0:02:46]} 14. Bxf6 {[%clk 0:02:55]}  Qxf6 {[%clk 0:02:44]} 15. Qxf6 {[%clk 0:02:55]}  gxf6 {[%clk 0:02:45]} 16. Ne2 {[%clk 0:02:56]}  Kg7 {[%clk 0:02:36]} 17. Rad1 {[%clk 0:02:56]}  Bc5 {[%clk 0:02:33]} 18. Ng3 {[%clk 0:02:50]}  Re5 {[%clk 0:02:32]} 19. Rfe1 {[%clk 0:02:40]}  Bd7 {[%clk 0:02:28]} 20. Rxe5 {[%clk 0:02:00]}  fxe5 {[%clk 0:02:28]} 21. Nh5+ {[%clk 0:02:01]}  Kh6 {[%clk 0:02:24]} 22. Nf6 {[%clk 0:01:57]}  Be6 {[%clk 0:02:23]} 23. Kf1 {[%clk 0:01:45]}  e4 {[%clk 0:02:22]} 24. Be2 {[%clk 0:01:45]}  Kg6 {[%clk 0:02:21]} 25. Nh5 {[%clk 0:01:42]}  Bd6 {[%clk 0:02:19]} 26. g4 {[%clk 0:01:26]}  f5 {[%clk 0:02:13]} 27. f3 {[%clk 0:01:26]}  Be5 {[%clk 0:02:07]} 28. Kg2 {[%clk 0:01:20]}  Rg8 {[%clk 0:02:05]} 29. Ng3 {[%clk 0:01:03]}  Kf7 {[%clk 0:01:59]} 30. Rf1 {[%clk 0:00:44]}  f4 {[%clk 0:01:58]} 31. fxe4 {[%clk 0:00:41]}  dxe4 {[%clk 0:01:53]} 32. Nxe4 {[%clk 0:00:41]}  Ke7 {[%clk 0:01:48]} 33. Rd1 {[%clk 0:00:35]}  h5 {[%clk 0:01:47]} 34. g5 {[%clk 0:00:31]}  Bd5 {[%clk 0:01:47]} 35. Bf3 {[%clk 0:00:30]}  Bxe4 {[%clk 0:01:46]} 36. Bxe4 {[%clk 0:00:31]}  Rxg5+ {[%clk 0:01:46]} 37. Kf2 {[%clk 0:00:31]}  c5 {[%clk 0:01:46]} 38. Rg1 {[%clk 0:00:25]}  Bd4+ {[%clk 0:01:46]} 0-1

[Event "November 21 Early 2023"]
[Site "https://www.chess.com"]
[Date "2023.11.21"]
[Round "7"]
[White "Pace, Christopher"]
[Black "Shuvalov, Evgenij"]
[Result "0-1"]
[Board "103"]
[TimeControl "180+1"]
[WhiteFideId "2610167"]
[BlackFideId "4187237"]
[WhiteElo "2432"]
[BlackElo "2059"]
[WhiteTeam "CAN"]
[BlackTeam "FID"]
[WhiteClock "0:00:06"]
[BlackClock "0:00:48"]

1. e4 {[%clk 0:03:00]}  e6 {[%clk 0:02:55]} 2. d3 {[%clk 0:02:57]}  d5 {[%clk 0:02:55]} 3. Nd2 {[%clk 0:02:57]}  c5 {[%clk 0:02:56]} 4. g3 {[%clk 0:02:55]}  Nc6 {[%clk 0:02:56]} 5. Bg2 {[%clk 0:02:56]}  Nf6 {[%clk 0:02:56]} 6. Ngf3 {[%clk 0:02:56]}  Be7 {[%clk 0:02:57]} 7. O-O {[%clk 0:02:56]}  O-O {[%clk 0:02:57]} 8. Re1 {[%clk 0:02:56]}  b5 {[%clk 0:02:57]} 9. e5 {[%clk 0:02:53]}  Nd7 {[%clk 0:02:57]} 10. Nf1 {[%clk 0:02:53]}  a5 {[%clk 0:02:56]} 11. h4 {[%clk 0:02:52]}  a4 {[%clk 0:02:56]} 12. N1h2 {[%clk 0:02:46]}  a3 {[%clk 0:02:45]} 13. bxa3 {[%clk 0:02:45]}  c4 {[%clk 0:02:39]} 14. d4 {[%clk 0:02:42]}  Bxa3 {[%clk 0:02:38]} 15. Bf4 {[%clk 0:02:30]}  Bb2 {[%clk 0:02:33]} 16. Rb1 {[%clk 0:02:30]}  Rxa2 {[%clk 0:02:33]} 17. h5 {[%clk 0:02:13]}  Qb6 {[%clk 0:02:08]} 18. Rxb2 {[%clk 0:01:48]}  Rxb2 {[%clk 0:02:08]} 19. Qa1 {[%clk 0:01:42]}  Rxc2 {[%clk 0:02:02]} 20. Qb1 {[%clk 0:01:32]}  Rc3 {[%clk 0:01:58]} 21. Ng5 {[%clk 0:01:29]}  Rd3 {[%clk 0:01:50]} 22. Bf1 {[%clk 0:01:19]}  h6 {[%clk 0:01:29]} 23. Bxd3 {[%clk 0:01:10]}  hxg5 {[%clk 0:01:29]} 24. Bh7+ {[%clk 0:01:10]}  Kh8 {[%clk 0:01:29]} 25. Bxg5 {[%clk 0:01:11]}  Qxd4 {[%clk 0:01:25]} 26. Nf3 {[%clk 0:01:02]}  Qg4 {[%clk 0:01:25]} 27. Kg2 {[%clk 0:00:55]}  Ncxe5 {[%clk 0:01:07]} 28. Nxe5 {[%clk 0:00:48]}  Qxg5 {[%clk 0:01:07]} 29. f4 {[%clk 0:00:43]}  Qh6 {[%clk 0:01:01]} 30. Bg6 {[%clk 0:00:38]}  Nxe5 {[%clk 0:01:01]} 31. fxe5 {[%clk 0:00:20]}  fxg6 {[%clk 0:00:52]} 32. hxg6 {[%clk 0:00:21]}  Kg8 {[%clk 0:00:51]} 33. Qc2 {[%clk 0:00:15]}  Rf5 {[%clk 0:00:48]} 34. Rh1 {[%clk 0:00:06]}  Qxg6 {[%clk 0:00:48]} 0-1